bitfinex/quotes_BTCUSD_20240826
["timestamp","ask_amount","ask_price","bid_price","bid_amount"]
[1724692110461,1.41269568,63805.0,63804.0,0.1]
[1724692110665,1.370872,63805.0,63804.0,0.1]
[1724692111084,1.375872,63805.0,63804.0,0.1]
[1724692113432,1.375872,63805.0,63804.0,0.1009064]
[1724692116672,1.689327,63805.0,63804.0,0.1009064]
[1724692116879,1.690327,63805.0,63804.0,0.1009064]
[1724692118064,1.685327,63805.0,63804.0,0.1009064]
[1724692118670,1.680327,63805.0,63804.0,0.1009064]
[1724692118957,1.71588931,63805.0,63804.0,0.1009064]
[1724692119540,1.72688931,63805.0,63804.0,0.1009064]
[1724692119766,1.72788931,63805.0,63804.0,0.1009064]
[1724692119970,2.14134431,63805.0,63804.0,0.1009064]
[1724692120175,2.20417731,63805.0,63804.0,0.1009064]
[1724692121227,1.89072231,63805.0,63804.0,0.1009064]
[1724692122009,1.55623232,63805.0,63804.0,0.1009064]
[1724692122427,1.55523232,63805.0,63804.0,0.1009064]
[1724692122607,1.42383232,63805.0,63804.0,0.1009064]
[1724692125340,1.26710532,63805.0,63804.0,0.1009064]
[1724692125488,1.42383232,63805.0,63804.0,0.1009064]
[1724692129078,1.01037732,63805.0,63804.0,0.1009064]
[1724692129254,0.67392232,63805.0,63804.0,0.1009064]
[1724692129466,0.96281501,63805.0,63804.0,0.1009064]
[1724692130166,0.64936001,63805.0,63804.0,0.1009064]
[1724692130365,0.96281501,63805.0,63804.0,0.1009064]
[1724692130800,1.27627001,63805.0,63804.0,0.1009064]
[1724692130994,1.29927001,63805.0,63804.0,0.1009064]
[1724692131156,1.35927001,63805.0,63804.0,0.1009064]
[1724692131349,1.33627001,63805.0,63804.0,0.1009064]
[1724692133400,1.33627001,63805.0,63804.0,0.0009064]
[1724692134690,0.96281501,63805.0,63804.0,0.0656064]
[1724692143427,0.96281501,63805.0,63804.0,0.0009064]
[1724692143637,1.36952972,63805.0,63804.0,0.0009064]
[1724692144872,0.99247472,63805.0,63804.0,0.0009064]
[1724692145081,0.99247472,63805.0,63804.0,0.1365064]
[1724692145082,0.67901972,63805.0,63804.0,0.1365064]
[1724692146409,0.64936001,63805.0,63804.0,0.1365064]
[1724692147429,0.96381501,63805.0,63804.0,0.1365064]
[1724692147869,0.65118501,63805.0,63804.0,0.1365064]
[1724692148070,0.65018501,63805.0,63804.0,0.1365064]
[1724692148668,0.65118501,63805.0,63804.0,0.1365064]
[1724692148814,0.96464001,63805.0,63804.0,0.1365064]
[1724692149010,0.65018501,63805.0,63804.0,0.1365064]
[1724692149222,0.65118501,63805.0,63804.0,0.1365064]
[1724692149447,0.96664001,63805.0,63804.0,0.1365064]
[1724692149603,0.96564001,63805.0,63804.0,0.1365064]
[1724692149816,0.96664001,63805.0,63804.0,0.1365064]
[1724692150027,0.65318501,63805.0,63804.0,0.1365064]
[1724692150252,0.18300301,63805.0,63804.0,0.1365064]
[1724692150451,0.65318501,63805.0,63804.0,0.1365064]
[1724692151027,0.18000301,63805.0,63804.0,0.1365064]
[1724692151237,0.18000301,63805.0,63804.0,0.2932354]
[1724692151471,0.16800301,63805.0,63804.0,0.2932354]
[1724692151699,0.16800301,63805.0,63804.0,0.6066944]
[1724692151700,0.16200301,63805.0,63804.0,0.6066944]
[1724692151934,0.15700301,63805.0,63804.0,0.2932354]
[1724692152166,0.16100301,63805.0,63804.0,0.2932354]
[1724692152440,0.16200301,63805.0,63804.0,0.2932354]
[1724692152677,0.15800301,63805.0,63804.0,0.2932354]
[1724692153360,0.15800301,63805.0,63804.0,0.1365064]
[1724692153588,0.31573001,63805.0,63804.0,0.1365064]
[1724692153818,0.15900301,63805.0,63804.0,0.1365064]
[1724692155308,0.16000301,63805.0,63804.0,0.1365064]
[1724692155542,0.15900301,63805.0,63804.0,0.1365064]
[1724692158056,0.15900301,63805.0,63804.0,0.2932354]
[1724692161561,0.15900301,63805.0,63804.0,0.6066944]
[1724692164408,0.15900301,63805.0,63804.0,0.2932354]
[1724692165105,0.15900301,63805.0,63804.0,0.1365064]
[1724692165348,0.15900301,63805.0,63804.0,0.2932354]
[1724692165594,0.15900301,63805.0,63804.0,0.9201534]
[1724692166312,0.15900301,63805.0,63804.0,0.6066944]
[1724692167508,0.20597351,63805.0,63804.0,0.6066944]
[1724692168219,0.20697351,63805.0,63804.0,0.6066944]
[1724692169420,0.20897351,63805.0,63804.0,0.6066944]
[1724692170443,0.20797351,63805.0,63804.0,0.6066944]
[1724692170662,0.20897351,63805.0,63804.0,0.6066944]
[1724692170898,0.20797351,63805.0,63804.0,0.6066944]
[1724692171143,0.20897351,63805.0,63804.0,0.6066944]
[1724692172597,0.20797351,63805.0,63804.0,0.6066944]
[1724692172830,0.20897351,63805.0,63804.0,0.6066944]
[1724692173543,0.16200301,63805.0,63804.0,0.6066944]
[1724692173998,0.16100301,63805.0,63804.0,0.6066944]
[1724692174240,0.16200301,63805.0,63804.0,0.6066944]
[1724692174970,0.16200301,63805.0,63804.0,0.0764064]
[1724692175208,0.25490802,63805.0,63804.0,0.2331354]
[1724692175694,0.15996701,63805.0,63804.0,0.0764064]
[1724692175949,0.15996701,63805.0,63804.0,0.2331354]
[1724692175950,0.16096701,63805.0,63804.0,0.2331354]
[1724692176170,0.16096701,63805.0,63804.0,0.0764064]
[1724692176395,0.15796701,63805.0,63804.0,0.0764064]
[1724692176623,0.16096701,63805.0,63804.0,0.0764064]
[1724692177545,0.27839327,63805.0,63804.0,0.0764064]
[1724692177771,0.2314656,63805.0,63804.0,0.2331354]
[1724692178087,0.16096701,63805.0,63804.0,0.0764064]
[1724692178307,0.23046318,63805.0,63804.0,0.0764064]
[1724692178539,0.15796701,63805.0,63804.0,0.0764064]
[1724692178782,0.15896701,63805.0,63804.0,0.1395064]
[1724692179525,0.25296513,63805.0,63804.0,0.1395064]
[1724692179991,0.40969213,63805.0,63804.0,0.1395064]
[1724692180207,0.40869213,63805.0,63804.0,0.1395064]
[1724692180465,0.40969213,63805.0,63804.0,0.1395064]
[1724692180711,0.40869213,63805.0,63804.0,0.1395064]
[1724692180938,0.31669401,63805.0,63804.0,0.1395064]
[1724692181164,0.31769401,63805.0,63804.0,0.1395064]
[1724692181807,0.41173968,63805.0,63804.0,0.1395064]
[1724692182047,0.63114901,63805.0,63804.0,0.1395064]
[1724692183500,0.63014901,63805.0,63804.0,0.1395064]
[1724692183757,1.31925901,63805.0,63804.0,0.0009064]
[1724692183997,0.6598127,63805.0,63804.0,0.0009064]
[1724692184299,0.9742677,63805.0,63804.0,0.0009064]
[1724692184481,1.06216997,63805.0,63804.0,0.0009064]
[1724692184732,0.62814901,63805.0,63804.0,0.0009064]
[1724692184979,0.72220208,63805.0,63804.0,0.0832064]
[1724692185588,0.25202008,63805.0,63804.0,0.4590654]
[1724692185817,0.25202008,63805.0,63804.0,0.9292534]
[1724692185818,0.002825,63805.0,63804.0,0.9292534]
[1724692186057,0.15900301,63805.0,63804.0,0.1456064]
[1724692186566,0.20602792,63805.0,63804.0,0.1456064]
[1724692187086,0.31573001,63805.0,63804.0,0.0832064]
[1724692187346,0.62918501,63805.0,63804.0,0.0832064]
[1724692187586,0.7232318,63805.0,63804.0,0.0832064]
[1724692188293,0.4097768,63805.0,63804.0,0.0832064]
[1724692188550,0.4097768,63805.0,63804.0,0.0009064]
[1724692188551,0.97230788,63805.0,63804.0,0.0009064]
[1724692189063,1.03669439,63805.0,63804.0,0.0009064]
[1724692189296,0.94264001,63805.0,63804.0,0.0009064]
[1724692189764,1.06021202,63805.0,63804.0,0.0009064]
[1724692190005,0.94264001,63805.0,63804.0,0.0009064]
[1724692190255,1.42196285,63805.0,63804.0,0.0009064]
[1724692190482,1.35106285,63805.0,63804.0,0.0009064]
[1724692190768,1.35206285,63805.0,63804.0,0.0009064]
[1724692191252,1.35406285,63805.0,63804.0,0.0009064]
[1724692191708,1.49418658,63805.0,63804.0,0.0009064]
[1724692191949,1.35406285,63805.0,63804.0,0.0009064]
[1724692194307,1.35306285,63805.0,63804.0,0.0009064]
[1724692194567,1.35406285,63805.0,63804.0,0.0009064]
[1724692195293,1.03960785,63805.0,63804.0,0.0009064]
[1724692195534,1.04060785,63805.0,63804.0,0.0009064]
[1724692196055,1.03960785,63805.0,63804.0,0.0009064]
[1724692196544,1.03860785,63805.0,63804.0,0.0009064]
[1724692197030,1.04660785,63805.0,63804.0,0.0009064]
[1724692197274,1.04760785,63805.0,63804.0,0.0009064]
[1724692198710,1.04660785,63805.0,63804.0,0.0009064]
[1724692198957,1.04760785,63805.0,63804.0,0.0009064]
[1724692202774,0.98230785,63805.0,63804.0,0.0009064]
[1724692203550,0.95264001,63805.0,63804.0,0.0009064]
[1724692204042,0.98131265,63805.0,63804.0,0.0009064]
[1724692204284,0.94964001,63805.0,63804.0,0.0009064]
[1724692204519,0.95164001,63805.0,63804.0,0.0009064]
[1724692205005,0.94964001,63805.0,63804.0,0.0009064]
[1724692205496,0.97931273,63805.0,63804.0,0.0009064]
[1724692206749,1.04141273,63805.0,63804.0,0.0009064]
[1724692207226,1.60335233,63805.0,63804.0,0.0009064]
[1724692207876,1.7444888,63805.0,63804.0,0.0009064]
[1724692208094,1.85335769,63805.0,63804.0,0.0009064]
[1724692208308,1.67577309,63805.0,63804.0,0.0009064]
[1724692209159,1.71041886,63805.0,63804.0,0.0009064]
[1724692211165,1.86919517,63805.0,63804.0,0.0009064]
[1724692211977,1.86519517,63805.0,63804.0,0.0009064]
[1724692212303,1.87219517,63805.0,63804.0,0.0009064]
[1724692212505,1.86719517,63805.0,63804.0,0.0009064]
[1724692213415,1.70141886,63805.0,63804.0,0.0009064]
[1724692213805,1.71841886,63805.0,63804.0,0.0009064]
[1724692214009,2.03187386,63805.0,63804.0,0.0009064]
[1724692214227,2.19165017,63805.0,63804.0,0.0009064]
[1724692214436,2.03287386,63805.0,63804.0,0.0009064]
[1724692214937,2.02726944,63805.0,63804.0,0.0009064]
[1724692215356,2.01926944,63805.0,63804.0,0.0009064]
[1724692215510,2.11926944,63805.0,63804.0,0.0009064]
[1724692215720,2.42372444,63805.0,63804.0,0.0009064]
[1724692215963,2.53688131,63805.0,63804.0,0.0009064]
[1724692216167,2.38687027,63805.0,63804.0,0.0009064]
[1724692216572,2.12653558,63805.0,63804.0,0.0009064]
[1724692216971,2.13853558,63805.0,63804.0,0.0009064]
[1724692217232,1.85522273,63805.0,63804.0,0.0009064]
[1724692217450,1.85422273,63805.0,63804.0,0.0009064]
[1724692217682,2.11086573,63805.0,63804.0,0.0009064]
[1724692218318,1.5767764,63805.0,63804.0,0.0009064]
[1724692218528,1.5767764,63805.0,63804.0,0.0010444]
[1724692218754,1.717677,63805.0,63804.0,0.0010444]
[1724692219378,0.99731273,63805.0,63804.0,0.0776444]
[1724692219592,0.68285773,63805.0,63804.0,0.1424444]
[1724692220013,0.77159284,63805.0,63804.0,0.1424444]
[1724692220222,0.77059284,63805.0,63804.0,0.1424444]
[1724692220436,0.74710946,63805.0,63804.0,0.1424444]
[1724692221309,0.65318501,63805.0,63804.0,0.1424444]
[1724692221515,0.74511096,63805.0,63804.0,0.1424444]
[1724692221728,1.05856596,63805.0,63804.0,0.1424444]
[1724692221936,0.74511096,63805.0,63804.0,0.1424444]
[1724692222382,1.05856596,63805.0,63804.0,0.0776444]
[1724692222606,0.99430069,63805.0,63804.0,0.0776444]
[1724692222826,0.96464001,63805.0,63804.0,0.0776444]
[1724692223038,0.99430175,63805.0,63804.0,0.0776444]
[1724692223241,0.96464001,63805.0,63804.0,0.0776444]
[1724692223685,1.27809501,63805.0,63804.0,0.0776444]
[1724692223914,0.96464001,63805.0,63804.0,0.0776444]
[1724692224121,1.27809501,63805.0,63804.0,0.0776444]
[1724692224335,1.30775459,63805.0,63804.0,0.0776444]
[1724692226060,1.3323136,63805.0,63804.0,0.0776444]
[1724692226480,1.3323136,63805.0,63804.0,0.0010444]
[1724692240042,1.44117147,63805.0,63804.0,0.0010444]
[1724692242719,1.58215988,63805.0,63804.0,0.0010444]
[1724692244038,1.58217645,63805.0,63804.0,0.0010444]
[1724692245455,1.64637645,63805.0,63804.0,0.0010444]
[1724692247500,1.68168749,63805.0,63804.0,0.0010444]
[1724692248793,1.68129624,63805.0,63804.0,0.0010444]
[1724692249250,1.61709624,63805.0,63804.0,0.0010444]
[1724692251289,1.6169472,63805.0,63804.0,0.0010444]
[1724692254085,1.61703301,63805.0,63804.0,0.0010444]
[1724692255946,1.19472014,63805.0,63804.0,0.0010444]
[1724692256157,1.19772014,63805.0,63804.0,0.1492444]
[1724692256361,1.51117514,63805.0,63804.0,0.1492444]
[1724692256563,1.51017514,63805.0,63804.0,0.1492444]
[1724692256760,1.50817514,63805.0,63804.0,0.1492444]
[1724692257526,1.50817514,63805.0,63804.0,0.0832444]
[1724692259470,1.50780514,63805.0,63804.0,0.0832444]
[1724692260899,1.50690514,63805.0,63804.0,0.0832444]
[1724692261113,1.50690514,63805.0,63804.0,0.0010444]
[1724692261362,1.57090514,63805.0,63804.0,0.0010444]
[1724692261772,2.05626014,63805.0,63804.0,0.0010444]
[1724692261985,2.07926014,63805.0,63804.0,0.0010444]
[1724692262201,2.07307415,63805.0,63804.0,0.0010444]
[1724692262405,2.18193202,63805.0,63804.0,0.0010444]
[1724692263248,2.49538702,63805.0,63804.0,0.0010444]
[1724692263376,2.18193202,63805.0,63804.0,0.0010444]
[1724692263784,2.18275702,63805.0,63804.0,0.0010444]
[1724692263986,2.55804579,63805.0,63804.0,0.0010444]
[1724692264369,2.48266815,63805.0,63804.0,0.0010444]
[1724692264569,2.74827154,63805.0,63804.0,0.0010444]
[1724692265288,2.74827154,63805.0,63783.0,0.075]
[1724692265289,0.0719,63791.0,63783.0,0.075]
[1724692265489,0.90077946,63791.0,63783.0,0.075]
[1724692265671,1.21430246,63791.0,63783.0,0.075]
[1724692265875,1.52782546,63791.0,63783.0,0.075]
[1724692266080,2.00483887,63791.0,63783.0,0.075]
[1724692267458,2.02083887,63791.0,63783.0,0.075]
[1724692267863,2.00483887,63791.0,63783.0,0.075]
[1724692268069,2.01583887,63791.0,63783.0,0.075]
[1724692268279,2.02683887,63791.0,63780.0,0.084064]
[1724692268482,2.01583887,63791.0,63780.0,0.009064]
[1724692268682,2.00483887,63791.0,63780.0,0.009064]
[1724692268890,2.18753866,63791.0,63780.0,0.009064]
[1724692269301,2.02883887,63791.0,63784.0,0.075]
[1724692270109,2.01683887,63791.0,63784.0,0.075]
[1724692270534,2.01883887,63791.0,63784.0,0.075]
[1724692270952,2.00483887,63791.0,63784.0,0.075]
[1724692271162,2.03183887,63791.0,63784.0,0.075]
[1724692271365,2.01883887,63791.0,63784.0,0.075]
[1724692271775,2.03283887,63791.0,63784.0,0.075]
[1724692272820,1.96193887,63791.0,63784.0,0.075]
[1724692273831,1.89803887,63791.0,63784.0,0.075]
[1724692274057,2.03882308,63791.0,63784.0,0.075]
[1724692276416,2.03876817,63791.0,63784.0,0.075]
[1724692276682,2.06176817,63791.0,63783.0,0.075]
[1724692277171,1.76641989,63791.0,63783.0,0.075]
[1724692277409,1.62569059,63791.0,63783.0,0.075]
[1724692277646,1.62469059,63791.0,63789.0,0.075]
[1724692278094,1.62569059,63791.0,63789.0,0.075]
[1724692279771,1.62569059,63791.0,63780.0,0.009064]
[1724692279986,1.88599059,63791.0,63780.0,0.009064]
[1724692280398,2.02671989,63791.0,63780.0,0.009064]
[1724692280614,1.88599059,63791.0,63780.0,0.009064]
[1724692280844,1.43725328,63781.0,63780.0,0.009064]
[1724692281050,2.29147729,63781.0,63780.0,0.009064]
[1724692281256,2.29147729,63781.0,63773.0,0.009075]
[1724692281257,1.68457928,63774.0,63773.0,0.009075]
[1724692281464,2.24839468,63774.0,63773.0,0.009075]
[1724692281705,2.44432387,63774.0,63773.0,0.009075]
[1724692281923,2.60258641,63774.0,63773.0,0.009075]
[1724692282118,2.44432387,63774.0,63773.0,0.009075]
[1724692282346,2.44432387,63774.0,63757.0,0.075]
[1724692282347,1.412384,63767.0,63747.0,0.001]
[1724692282558,1.412384,63767.0,63746.0,0.1376]
[1724692282559,1.87056987,63767.0,63746.0,0.1376]
[1724692282788,1.89356987,63767.0,63746.0,0.1376]
[1724692283007,1.99356987,63767.0,63747.0,0.001]
[1724692283434,1.99356987,63767.0,63756.0,0.075]
[1724692283692,2.00556987,63767.0,63756.0,0.075]
[1724692283894,2.09299479,63767.0,63756.0,0.075]
[1724692284356,1.97591029,63767.0,63756.0,0.075]
[1724692284594,1.98791029,63767.0,63756.0,0.075]
[1724692284800,2.30155129,63767.0,63756.0,0.075]
[1724692285445,2.39513752,63767.0,63756.0,0.075]
[1724692285702,2.30155129,63767.0,63756.0,0.075]
[1724692286359,2.39629623,63767.0,63756.0,0.075]
[1724692286963,2.08265523,63767.0,63756.0,0.075]
[1724692287312,2.01248916,63767.0,63756.0,0.075]
[1724692287725,2.13433524,63767.0,63756.0,0.075]
[1724692288352,2.13433524,63767.0,63766.0,0.1009075]
[1724692288353,2.01248916,63767.0,63766.0,0.1009075]
[1724692288731,2.05924206,63767.0,63766.0,0.1009075]
[1724692288939,2.08262063,63767.0,63766.0,0.1009075]
[1724692289203,2.01248916,63767.0,63766.0,0.1009075]
[1724692289373,2.39624318,63767.0,63766.0,0.1009075]
[1724692289574,2.55237486,63767.0,63766.0,0.1009075]
[1724692290373,2.48226184,63767.0,63766.0,0.1009075]
[1724692290791,2.23871914,63767.0,63766.0,0.1009075]
[1724692290999,2.16862084,63767.0,63766.0,0.1009075]
[1724692291374,2.23149484,63767.0,63766.0,0.1009075]
[1724692291819,2.07536316,63767.0,63766.0,0.1009075]
[1724692291986,2.38900416,63767.0,63766.0,0.1009075]
[1724692293846,2.05136316,63767.0,63766.0,0.1783075]
[1724692294192,1.71614088,63767.0,63766.0,0.1783075]
[1724692295094,1.71614088,63767.0,63766.0,0.2414075]
[1724692295095,0.77521788,63767.0,63766.0,0.2414075]
[1724692295499,1.08885888,63767.0,63766.0,0.2414075]
[1724692295704,0.67521788,63767.0,63766.0,0.2414075]
[1724692295912,0.18017801,63767.0,63766.0,0.2414075]
[1724692296086,0.16817801,63767.0,63766.0,0.2414075]
[1724692296454,0.32499801,63767.0,63766.0,0.2414075]
[1724692296618,0.33199801,63767.0,63766.0,0.2414075]
[1724692296820,0.31999801,63767.0,63766.0,0.2414075]
[1724692297144,0.32799801,63767.0,63766.0,0.2414075]
[1724692297551,0.31299801,63767.0,63766.0,0.2414075]
[1724692297699,0.63263901,63767.0,63766.0,0.2414075]
[1724692298990,0.32399801,63767.0,63766.0,0.2414075]
[1724692299249,0.63763901,63767.0,63766.0,0.2414075]
[1724692299447,0.95128001,63767.0,63766.0,0.2414075]
[1724692302300,0.95128001,63767.0,63766.0,0.1414075]
[1724692304496,0.63763901,63767.0,63766.0,0.1414075]
[1724692304994,0.95128001,63767.0,63766.0,0.1414075]
[1724692310342,0.16717801,63767.0,63766.0,0.1414075]
[1724692310770,0.16717801,63767.0,63766.0,0.2982305]
[1724692311682,0.16117801,63767.0,63766.0,0.1414075]
[1724692312061,0.15617801,63767.0,63766.0,0.6118765]
[1724692312236,0.16117801,63767.0,63766.0,0.6118765]
[1724692312446,0.16117801,63767.0,63766.0,0.2982305]
[1724692312847,0.15617801,63767.0,63766.0,0.2982305]
[1724692314060,0.000825,63772.0,63771.0,0.156811]
[1724692314260,0.000825,63772.0,63771.0,0.301711]
[1724692314464,0.000825,63772.0,63771.0,0.615333]
[1724692315117,0.000825,63772.0,63771.0,0.928955]
[1724692315412,0.004825,63772.0,63771.0,0.615333]
[1724692315835,0.000825,63772.0,63771.0,0.928955]
[1724692316036,0.15800301,63772.0,63771.0,0.301711]
[1724692316218,0.15900301,63772.0,63771.0,0.615333]
[1724692317320,0.15800301,63772.0,63771.0,0.615333]
[1724692317566,0.15900301,63772.0,63771.0,0.615333]
[1724692317771,0.15900301,63772.0,63771.0,0.301711]
[1724692317975,0.15900301,63772.0,63771.0,0.615333]
[1724692318417,0.15900301,63772.0,63771.0,0.301711]
[1724692318618,0.15900301,63772.0,63771.0,0.1449]
[1724692319411,0.31581101,63772.0,63771.0,0.1449]
[1724692319615,0.62942801,63772.0,63771.0,0.1449]
[1724692320218,0.62842801,63772.0,63771.0,0.1449]
[1724692320551,0.62742801,63772.0,63771.0,0.1449]
[1724692321284,0.94104501,63772.0,63771.0,0.082]
[1724692322314,0.62742801,63772.0,63771.0,0.082]
[1724692322923,0.31381101,63772.0,63771.0,0.082]
[1724692323121,0.62742801,63772.0,63771.0,0.082]
[1724692324742,0.94104501,63772.0,63771.0,0.082]
[1724692325189,0.62742801,63772.0,63771.0,0.082]
[1724692328869,0.78408,63769.0,63768.0,0.0792]
[1724692329073,0.94025801,63769.0,63768.0,0.0792]
[1724692330150,0.94125801,63769.0,63768.0,0.0792]
[1724692331278,0.94225801,63769.0,63768.0,0.0792]
[1724692331892,0.94125801,63769.0,63768.0,0.0792]
[1724692332310,0.94225801,63769.0,63768.0,0.0792]
[1724692334110,0.62862601,63769.0,63768.0,0.0792]
[1724692334950,0.62862601,63769.0,63768.0,0.0801075]
[1724692335623,0.94225801,63769.0,63768.0,0.0801075]
[1724692335997,0.62862601,63769.0,63768.0,0.0801075]
[1724692336198,0.72924935,63769.0,63768.0,0.0009075]
[1724692336404,1.10458135,63769.0,63768.0,0.0009075]
[1724692336669,1.69056163,63769.0,63768.0,0.0009075]
[1724692337558,1.68856163,63769.0,63768.0,0.0009075]
[1724692337992,1.70456163,63769.0,63768.0,0.0009075]
[1724692338602,1.69656163,63769.0,63768.0,0.0009075]
[1724692338797,1.70456163,63769.0,63768.0,0.0009075]
[1724692339406,1.9451193,63769.0,63768.0,0.0009075]
[1724692340424,1.94549792,63769.0,63768.0,0.0009075]
[1724692340928,1.94549793,63769.0,63768.0,0.0009075]
[1724692341272,1.80456163,63769.0,63768.0,0.0009075]
[1724692341473,1.94549793,63769.0,63768.0,0.0009075]
[1724692341923,2.25912993,63769.0,63768.0,0.0009075]
[1724692342098,2.11819363,63769.0,63768.0,0.0009075]
[1724692342317,1.94547999,63769.0,63768.0,0.0009075]
[1724692342520,2.11819363,63769.0,63768.0,0.0009075]
[1724692342737,1.80456163,63769.0,63768.0,0.0009075]
[1724692343336,1.94546392,63769.0,63768.0,0.0009075]
[1724692343652,2.25909592,63769.0,63768.0,0.0009075]
[1724692344471,1.94546392,63769.0,63768.0,0.0009075]
[1724692344917,2.25909592,63769.0,63768.0,0.0009075]
[1724692346317,2.11819363,63769.0,63768.0,0.0009075]
[1724692350618,2.26005548,63769.0,63768.0,0.0009075]
[1724692350821,2.11919363,63769.0,63768.0,0.0009075]
[1724692352129,2.58895731,63769.0,63768.0,0.0009075]
[1724692352375,2.61195731,63769.0,63768.0,0.0009075]
[1724692352749,2.77036372,63769.0,63768.0,0.0009075]
[1724692353405,2.61195731,63769.0,63768.0,0.0009075]
[1724692353595,2.77036372,63769.0,63768.0,0.0009075]
[1724692354007,2.76236372,63769.0,63768.0,0.0009075]
[1724692354441,2.46182563,63769.0,63768.0,0.0009075]
[1724692354564,2.45382563,63769.0,63768.0,0.0009075]
[1724692354799,2.46782563,63769.0,63768.0,0.0009075]
[1724692361350,2.62623204,63769.0,63768.0,0.0009075]
[1724692361551,2.46782563,63769.0,63768.0,0.0009075]
[1724692362209,2.78236372,63769.0,63768.0,0.0009075]
[1724692364021,2.62395731,63769.0,63768.0,0.0009075]
[1724692364431,2.78236372,63769.0,63768.0,0.0009075]
[1724692366089,2.61906329,63769.0,63768.0,0.0009075]
[1724692367541,2.46065688,63769.0,63768.0,0.0009075]
[1724692368150,2.61898147,63769.0,63768.0,0.0009075]
[1724692368360,2.61897912,63769.0,63768.0,0.0009075]
[1724692369048,2.46065688,63769.0,63768.0,0.0009075]
[1724692369259,1.74924535,63769.0,63768.0,0.0009075]
[1724692369513,1.74824535,63769.0,63768.0,0.0009075]
[1724692369708,1.8572932,63769.0,63768.0,0.0789075]
[1724692369913,1.8342932,63769.0,63768.0,0.0789075]
[1724692370403,1.8352932,63769.0,63768.0,0.0789075]
[1724692370907,1.8342932,63769.0,63768.0,0.0789075]
[1724692371113,1.41161335,63769.0,63768.0,0.0789075]
[1724692371325,1.41161335,63769.0,63768.0,0.1412075]
[1724692371722,1.5206612,63769.0,63768.0,0.1412075]
[1724692372168,1.41161335,63769.0,63768.0,0.1412075]
[1724692372797,0.21390135,63769.0,63768.0,0.1412075]
[1724692372970,0.37071735,63769.0,63768.0,0.1412075]
[1724692373692,0.65634935,63769.0,63768.0,0.1412075]
[1724692373883,0.64462601,63769.0,63768.0,0.1412075]
[1724692374119,0.95825801,63769.0,63768.0,0.1412075]
[1724692374317,1.05825801,63769.0,63768.0,0.1412075]
[1724692380378,0.33099401,63769.0,63768.0,0.1412075]
[1724692381125,0.17417801,63769.0,63768.0,0.1412075]
[1724692381330,0.17417801,63769.0,63768.0,0.2980255]
[1724692381747,0.16517801,63769.0,63768.0,0.2980255]
[1724692382129,0.16917801,63769.0,63768.0,0.9252975]
[1724692382393,0.16017801,63769.0,63768.0,0.9252975]
[1724692382629,0.16417801,63769.0,63768.0,0.9252975]
[1724692383909,1.26189001,63769.0,63768.0,0.1412075]
[1724692384115,1.26189001,63769.0,63768.0,0.0789075]
[1724692385028,0.63462601,63769.0,63768.0,0.0789075]
[1724692385374,0.32099401,63769.0,63768.0,0.1420075]
[1724692385600,0.16417801,63769.0,63768.0,0.1420075]
[1724692386477,0.16017801,63769.0,63768.0,0.1420075]
[1724692386880,0.16417801,63769.0,63768.0,0.1420075]
[1724692387080,0.16017801,63769.0,63768.0,0.1420075]
[1724692387321,0.15617801,63769.0,63768.0,0.1420075]
[1724692388246,0.15817801,63769.0,63768.0,0.2988255]
[1724692388450,0.15817801,63769.0,63768.0,0.1420075]
[1724692388619,0.16017801,63769.0,63768.0,0.1420075]
[1724692389632,0.16017801,63769.0,63768.0,0.2988255]
[1724692389983,0.16017801,63769.0,63768.0,0.1420075]
[1724692390207,0.16017801,63769.0,63768.0,0.2988255]
[1724692390936,0.16017801,63769.0,63768.0,0.1420075]
[1724692395198,0.16017801,63769.0,63768.0,0.2988255]
[1724692395403,0.16017801,63769.0,63768.0,0.1420075]
[1724692397323,0.31699401,63769.0,63768.0,0.1420075]
[1724692397777,0.16017801,63769.0,63768.0,0.1420075]
[1724692398163,0.31699401,63769.0,63768.0,0.1420075]
[1724692398827,0.16017801,63769.0,63768.0,0.1420075]
[1724692399062,0.94425801,63769.0,63768.0,0.0789075]
[1724692399276,0.94425801,63769.0,63768.0,0.0009075]
[1724692399277,1.25789001,63769.0,63768.0,0.0009075]
[1724692406659,0.16017801,63769.0,63768.0,0.3039255]
[1724692406821,0.16017801,63769.0,63768.0,0.1471075]
[1724692407271,0.16017801,63769.0,63768.0,0.3039255]
[1724692407651,0.15617801,63769.0,63768.0,0.3039255]
[1724692409492,0.15617801,63769.0,63768.0,0.1471075]
[1724692412156,0.94025801,63769.0,63768.0,0.1471075]
[1724692414940,0.98720239,63769.0,63768.0,0.1471075]
[1724692415359,1.01067458,63769.0,63768.0,0.1471075]
[1724692415558,0.94025801,63769.0,63768.0,0.1471075]
[1724692416183,0.98727001,63769.0,63768.0,0.1471075]
[1724692416384,1.01067458,63769.0,63768.0,0.1471075]
[1724692416591,0.15617801,63769.0,63768.0,0.1471075]
[1724692416793,0.20320737,63769.0,63768.0,0.3039255]
[1724692417181,0.15617801,63769.0,63768.0,0.6175615]
[1724692417371,0.15617801,63769.0,63768.0,0.3039255]
[1724692417716,0.20320737,63769.0,63768.0,0.3039255]
[1724692418561,0.22672209,63769.0,63768.0,0.1471075]
[1724692419007,0.15617801,63769.0,63768.0,0.1471075]
[1724692419430,0.15617801,63769.0,63768.0,0.3039255]
[1724692419625,0.22673296,63769.0,63768.0,0.1471075]
[1724692419793,0.72151477,63769.0,63768.0,0.0009075]
[1724692419997,0.62962601,63769.0,63768.0,0.0009075]
[1724692420227,1.01381252,63769.0,63768.0,0.0009075]
[1724692420459,0.99029515,63769.0,63768.0,0.0788075]
[1724692420654,0.20621515,63769.0,63768.0,0.1398075]
[1724692420829,0.20521515,63769.0,63768.0,0.1398075]
[1724692421030,0.20621515,63769.0,63768.0,0.1398075]
[1724692421253,0.20621515,63769.0,63768.0,0.6102615]
[1724692421456,0.15617801,63769.0,63768.0,0.9238975]
[1724692424534,0.15617801,63769.0,63768.0,0.6102615]
[1724692426903,0.15617801,63769.0,63768.0,0.9238975]
[1724692432633,0.000825,63772.0,63769.0,0.1432]
[1724692432806,0.000825,63772.0,63771.0,1.097677]
[1724692433010,0.000825,63772.0,63771.0,1.240877]
[1724692439792,0.000825,63772.0,63771.0,0.927255]
[1724692439984,0.47062001,63772.0,63771.0,0.077]
[1724692440188,0.156813,63771.0,63768.0,0.0815075]
[1724692440389,0.15617801,63770.0,63768.0,0.0815075]
[1724692440672,0.15617801,63770.0,63769.0,0.156816]
[1724692440850,0.15617801,63770.0,63769.0,0.551048]
[1724692441049,0.15617801,63770.0,63769.0,0.0806]
[1724692441277,0.15617801,63770.0,63769.0,0.237416]
[1724692442307,0.15617801,63770.0,63769.0,0.0806]
[1724692442711,0.15617801,63770.0,63769.0,0.237416]
[1724692443687,0.15617801,63770.0,63769.0,0.0806]
[1724692444149,0.15617801,63770.0,63769.0,0.237416]
[1724692445316,0.15617801,63770.0,63769.0,0.551048]
[1724692445635,0.15617801,63770.0,63769.0,0.5519555]